Cogmind - Beta 15 @@@ ROGUE MODE // 2025.05.25 @ 17:17:37 Player: puppuppit Result: Destroyed by Autobeam Turret with Autobeam Performance ------------- Evolutions (0) 0 Regions Visited (2) 400 Robots Destroyed (35) 175 Value Destroyed (712) 712 Prototype IDs (3) 60 Alien Tech Used (0) 0 Bonus (-139) -139 TOTAL SCORE: 1208 Bonus ------- Friendly Fire -139 Cogmind --------- Core Integrity 0/250 Matter 43/300 Energy 100/100 System Corruption 0% Temperature Cool (6) Movement Rolling (110) Location -10/Subcaves Parts ------- > --- POWER (1) -------- (None) > --- PROPULSION (2) --- Subdweller Monowheel Subdweller Monowheel > --- UTILITY (2) ------ Large Storage Unit Gun Armor > --- WEAPON (2+2) ----- (None) > --- INVENTORY (15) --- Subdweller Power Source Improved Treads Improved Treads Improved Treads Wheel Medium Matter Pod (100) Terrain Scanner Riot Gun Light Assault Rifle Light Assault Rifle Light Assault Rifle Subdweller Machine Gun Subdweller Machine Gun Makeshift Spear Peak State ------------ > --- POWER ------------ Subdweller Power Source > --- PROPULSION ------- Improved Treads Improved Treads > --- UTILITY ---------- Large Storage Unit Gun Armor > --- WEAPON ----------- Battle Rifle Makeshift Spear > --- INVENTORY -------- Subdweller Power Source Improved Treads Improved Treads Wheel Subdweller Monowheel Subdweller Monowheel Medium Matter Pod Terrain Scanner Riot Gun Light Assault Rifle Light Assault Rifle Light Assault Rifle Subdweller Machine Gun Subdweller Machine Gun Grenade Launcher [Rating: 24] Favorites ----------- Power Light Ion Engine Engine Light Ion Engine Propulsion Improved Treads Treads Improved Treads Wheel Wheel Utility Large Storage Unit Device Improved Terrain Scanner Storage Large Storage Unit Protection Gun Armor Weapon Assault Rifle Energy Gun Riot Gun Ballistic Gun Assault Rifle Launcher Grenade Launcher Piercing Weapon Makeshift Spear Build | -11 -10 -10 ------- Run | Yrd Mat Sub Slots Evolved . | . . . Power . | . . . Propulsion . | . . . Utility . | . . . Weapon . | . . . Parts Attached 30 | 9 10 11 Power 4 | 1 2 1 Engine 4 | 1 2 1 Core . | . . . Reactor . | . . . Propulsion 8 | 4 2 2 Treads 2 | . 2 . Leg . | . . . Wheel 6 | 4 . 2 Hover . | . . . Flight . | . . . Utility 9 | 2 5 2 Device 3 | 1 1 1 Storage 5 | 1 4 . Processor . | . . . Hackware . | . . . Protection 1 | . . 1 Artifact . | . . . Weapon 9 | 2 1 6 Energy Gun 1 | . . 1 Energy Cannon . | . . . Ballistic Gun 6 | 2 1 3 Ballistic Cannon . | . . . Launcher 1 | . . 1 Special Weapon . | . . . Impact Weapon . | . . . Slashing Weapon . | . . . Piercing Weapon 1 | . . 1 Special Melee Weapon . | . . . Unidentified Prototypes 1 | . . 1 Parts Lost 9 | . 1 8 Power 2 | . . 2 Propulsion 1 | . . 1 Utility 2 | . 1 1 Weapon 4 | . . 4 Highest Loss Streak 3 | . 1 3 To Critical Strikes . | . . . Average Backups 12 | . 11 14 Power . | . . 1 Propulsion 4 | . 4 5 Utility 2 | . 3 1 Weapon 5 | . 2 6 Tool/Special . | . . . Unused Backups 9 | . 1 8 Power 3 | . 1 2 Propulsion 4 | . . 4 Utility . | . . . Weapon 2 | . . 2 Tool/Special . | . . . Average Slot Usage (%) 95 | . 98 94 Engine 13 | . 14 13 Treads 23 | . 14 25 Wheel 4 | . 13 1 Device 11 | . 12 11 Storage 13 | . 14 13 Protection 1 | . . 1 Ballistic Gun 24 | . 28 23 Peak Build Rating 24 | 9 12 24 Average Rating 12 | 6 10 14 On Entrance 7 | . 9 12 Naked Turns . | . . . Heaviest Build 34 | 12 28 34 Greatest Support 46 | 26 46 46 Greatest Overweight (x) 1 | 1 1 . Average Overweight (x) . | . . . Largest Inventory Capacity 15 | 8 15 15 Average Capacity 14 | 7 14 15 Most Carried 15 | 4 15 15 Average Carried 12 | . 11 14 Final Capacity 15 | 8 15 15 Final Carried 15 | 4 15 14 Class Distribution -------------------- 100% | Mutant Dominant Class ---------------- Mutant | -10/Materials Mutant | -10/Subcaves Resources | -11 -10 -10 ----------- Run | Yrd Mat Sub Matter Collected 1040 | 328 521 191 Remotely . | . . . Salvage Created 978 | 159 582 237 Parts 67 | 15 39 13 Haulers Intercepted 1 | . 1 . Recyclers Shooed 2 | . 2 . Parts Field Recycled . | . . . Retrieved Matter . | . . . Parts Self-Destructed 14 | . . 14 Prevented 1 | . . 1 Kills | -11 -10 -10 ------- Run | Yrd Mat Sub Combat Hostiles Destroyed 21 | . 9 12 Guns 16 | . 9 7 AOE 5 | . . 5 Classes Destroyed 11 | 3 6 2 Worker 3 | 2 1 . Builder 2 | . 2 . Tunneler 3 | 3 . . Hauler 1 | . 1 . Recycler 3 | 1 2 . Operator 1 | . 1 . Swarmer 6 | . 3 3 Grunt 6 | . 6 . Sentry 1 | . . 1 Subdweller 8 | . . 8 Federalist 1 | . 1 . Best Kill Streak 4 | 3 4 3 Combat Bots Only 3 | . 3 3 Max Kills in Single Turn 2 | 1 1 2 Gunslinging . | . . . Exploded 2 | . . 2 Melee . | . . . Uniques/NPCs Destroyed . | . . . Combat | -11 -10 -10 -------- Run | Yrd Mat Sub Hostile Shots Fired 146 | . 44 102 Missed 41 | . 7 34 Hits 105 | . 37 68 Projectile 105 | . 37 68 AOE 4 | . . 4 Damage Taken 1429 | . 360 1069 Core 254 | . 55 199 Absorbed by Shields . | . . . Core Remaining (%) 100 | 100 . . Volleys Fired 108 | 21 53 34 Largest 2 | 2 2 2 Hottest 75 | 40 40 75 Shots Fired 213 | 42 106 65 Gun 191 | 42 106 43 Cannon . | . . . Launcher 22 | . . 22 Special . | . . . Kinetic 185 | 42 106 37 Thermal . | . . . Explosive 22 | . . 22 Electromagnetic 6 | . . 6 Robot Hit Streak 17 | 5 17 17 Robot Miss Streak 4 | 2 4 2 Penetration Max . | . . . Secondary Targets 2 | . 1 1 Max Gunslinging Chain 1 | . 1 1 Shots Hit Robots 144 | 28 68 48 Core Hits 57 | 8 26 23 Critical Kills 1 | . 1 . Critical Parts Destroyed 1 | . 1 . Critical Strikes 2 | . 2 . Destroy 2 | . 2 . Melee Attacks 3 | . . 3 Impact . | . . . Slashing . | . . . Piercing 3 | . . 3 Sneak Attacks . | . . . Combat Hostiles . | . . . Follow-up Attacks . | . . . Damage Inflicted 2780 | 315 859 1606 Guns 1677 | 315 859 503 Cannons . | . . . Explosions 1103 | . . 1103 Melee . | . . . Ramming . | . . . Kinetic 1568 | 315 859 394 Thermal . | . . . Explosive 1103 | . . 1103 Electromagnetic 109 | . . 109 Impact . | . . . Slashing . | . . . Piercing . | . . . Highest Corruption . | . . . Average Corruption . | . . . Corruption Purged . | . . . Corruption Blocked . | . . . Overload Shots . | . . . Overflow Damage . | . . . Projectiles . | . . . Explosions . | . . . Melee . | . . . Knockbacks . | . . . Impact . | . . . Kinetic . | . . . Secondary . | . . . Self-Inflicted Damage . | . . . Shots . | . . . Rammed . | . . . Targets Rammed . | . . . Kicked . | . . . Crushed . | . . . Highest Temperature 12 | . 12 6 Average Temperature 6 | . 6 4 Received Heat Transfer 324 | . 126 198 Siege Activations . | . . . Martial Activations . | . . . Shielding Activations . | . . . Robots Disrupted . | . . . Combat Hostiles . | . . . Robots Corrupted . | . . . Combat Hostiles . | . . . Parts Fried . | . . . Impact Corruptions . | . . . Robots Melted . | . . . Combat Hostiles . | . . . Parts Melted 3 | . 3 . Heat Transferred . | . . . Parts Sabotaged . | . . . Parts Stolen . | . . . Parts Stripped . | . . . Power Chain Reactions . | . . . Alert | -11 -10 -10 ------- Run | Yrd Mat Sub Maximum Alert Level . | . . . Low Security (%) 100 | 100 100 . Level 1 . | . . . Level 2 . | . . . Level 3 . | . . . Level 4 . | . . . Level 5 . | . . . High Security . | . . . Max Security . | . . . Peak Influence 109 | 10 109 . Initial 3 | . 3 . Average 30 | 1 35 . Influence Increases 502 | 30 307 165 Destroy 0b10 Robot/C 260 | . 180 80 Destroy 0b10 Robot/NC 65 | 30 35 . Destroy Leader 52 | . 42 10 Successful Hack 20 | . 20 . Select Force Hacks 30 | . 30 . Lose Combat Pursuer 75 | . . 75 Influence Decreases 457 | 25 265 167 Entered New Map 25 | . 2 23 Time Decay 382 | 25 263 94 Lost Part 50 | . . 50 Squads Dispatched 3 | . 3 . Investigation 1 | . 1 . Extermination . | . . . Reinforcement 2 | . 2 . Assault . | . . . Garrison . | . . . Intercept . | . . . Searches Triggered . | . . . Construction Impeded . | . . . Haulers Reinforced . | . . . Active Scanning Responses . | . . . Cargo Convoy Interrupts . | . . . Stealth | -11 -10 -10 --------- Run | Yrd Mat Sub Distress Signals 2 | . 2 . Communications Jammed . | . . . Distress Signals . | . . . Times Spotted 35 | . 17 18 Peak Tracking Total 4 | . 4 4 Tactical Retreats 2 | . . 2 Traps | -11 -10 -10 ------- Run | Yrd Mat Sub Traps Triggered . | . . . Indirectly . | . . . Trap Hack Attempts . | . . . Triggered . | . . . Disarmed . | . . . Reprogrammed . | . . . Reused . | . . . Traps Extracted . | . . . Installed . | . . . Triggered . | . . . Machines | -11 -10 -10 ---------- Run | Yrd Mat Sub Machines Disabled 1 | . 1 . Max in Single Turn 1 | . 1 . Machines Repaired . | . . . Machines Dismantled . | . . . Machines Sabotaged . | . . . Overloaded Fab Kills . | . . . Hacking | -11 -10 -10 --------- Run | Yrd Mat Sub Machines Accessed 4 | . 4 . Terminals 3 | . 3 . Fabricators . | . . . Repair Stations . | . . . Recycling Units 1 | . 1 . Scanalyzers . | . . . Garrison Access . | . . . Total Hacks 14 | . 14 . Successful 8 | . 8 . Failed 5 | . 5 . Catastrophic 1 | . 1 . Database Lockouts 1 | . 1 . Manual 8 | . 8 . Terminals 13 | . 13 . Fabricators . | . . . Repair Stations . | . . . Recycling Units 1 | . 1 . Scanalyzers . | . . . Garrison Access . | . . . Terminal Hacks 4 | . 4 . Robot Analysis 1 | . 1 . Prototype ID Bank 1 | . 1 . Terminal Index 1 | . 1 . Locate Traps 1 | . 1 . Fabricator Hacks . | . . . Repair Station Hacks . | . . . Recycling Unit Hacks . | . . . Scanalyzer . | . . . Garrison Access Hacks . | . . . Unauthorized Hacks 4 | . 4 . Terminals 3 | . 3 . Botnet 3 | . 3 . Fabricators . | . . . Repair Stations . | . . . Recycling Units 1 | . 1 . Tunnel 1 | . 1 . Scanalyzers . | . . . Garrison Access . | . . . Data Cores Recovered . | . . . Used . | . . . Hacking Detections 3 | . 3 . Full Trace Events . | . . . Feedback Events . | . . . Feedback Blocked . | . . . Robot Schematics Acquired . | . . . Robots Built . | . . . Authchips . | . . . Time . | . . . Total Robot Build Rating . | . . . Part Schematics Acquired . | . . . Parts Built . | . . . Authchips . | . . . Time . | . . . Total Part Build Rating . | . . . Parts Repaired . | . . . Time . | . . . Parts Recycled . | . . . Recycled Matter . | . . . Retrieved Matter . | . . . Retrieved Components . | . . . Parts Scanalyzed . | . . . Part Schematics Acquired . | . . . Parts Damaged . | . . . Bothacking | -11 -10 -10 ------------ Run | Yrd Mat Sub Used RIF Installer . | . . . Robots Hacked . | . . . Non-combat . | . . . Combat . | . . . Robot Hacks Applied . | . . . Relay Couplers Released . | . . . Fabnet Peak Effective % . | . . . Robots Rewired . | . . . Allies Hacked . | . . . Hacks Repelled . | . . . Allies | -11 -10 -10 -------- Run | Yrd Mat Sub Total Allies . | . . . Largest Group . | . . . Highest-Rated Group . | . . . Highest-Rated Ally . | . . . Total Orders . | . . . Ally Attacks . | . . . Total Damage . | . . . Kills . | . . . Allies Corrupted . | . . . Allies Melted . | . . . Intel | -11 -10 -10 ------- Run | Yrd Mat Sub Active Infowar (turns) 2670 | 45 721 1904 Terrain 2670 | 45 721 1904 Robot Analysis Total 1 | . 1 . Derelict Logs Recovered 3 | . . 3 Drone Launches . | . . . Drone Recoveries . | . . . Exploration | -11 -10 -10 ------------- Run | Yrd Mat Sub Turns Passed 3269 | 132 782 2355 Spaces Moved 1955 | 69 482 1404 Core 5 | 5 . . Treads 1511 | . 204 1307 Legs . | . . . Wheels 439 | 64 278 97 Hover . | . . . Flight . | . . . Fastest Speed 50 | 50 80 110 Average Speed 145 | 84 123 156 Slowest Speed 160 | 95 160 160 Overloaded Moves . | . . . Propulsion Burnouts . | . . . Robots Hopped . | . . . Potential Cave-ins . | . . . Cave-ins Triggered . | . . . Exploration Rate (%) 43 | 4 59 67 Regions Visited 2 Branch Regions 1 Pre-discovered Areas 1 | . 1 . Known Exits Taken . | . . . Unknown Exits Taken 2 | 1 1 . Scrap Searched 2 | . . 2 Spaces Dug . | . . . Terrain Destroyed 47 | . . 47 Melee . | . . . Projectile . | . . . AOE 47 | . . 47 Terrain Rammed . | . . . Walls Destroyed . | . . . Machines Disabled . | . . . Actions | -11 -10 -10 --------- Run | Yrd Mat Sub Total 2162 | 100 570 1492 Wait 21 | . 5 16 Move 1953 | 68 481 1404 Hop . | . . . Pick Up 25 | 2 13 10 Fast Attach 8 | 7 . 1 Attach 7 | . 2 5 Detach 2 | . 1 1 Swap 22 | 2 9 11 Drop 13 | . 6 7 Fire 108 | 21 53 34 Melee 3 | . . 3 Ram . | . . . Kick . | . . . Crush . | . . . Escape Stasis . | . . . Rewire . | . . . Trap . | . . . Miscellaneous . | . . . Route ------- -11/Scrapyard -10/Materials (discovered 3 exits: [*Mat] / [*Min] / [*Sub]) -10/Subcaves (discovered 2 exits: [*Mat] / [*Rec]) History --------- Turn | Location | Event 45 | -11/Scrapyard | Discovered new exit (range 15) 133 | -11/Scrapyard | Entered Materials 134 | -10/Materials | Met a group of wandering Federalists 250 | -10/Materials | Discovered new exit (range 8) 284 | -10/Materials | Central database locked down 308 | -10/Materials | Build established: Mutant 321 | -10/Materials | Discovered new exit (range 8) 419 | -10/Materials | Discovered new exit (range 5) 915 | -10/Materials | Entered Subcaves 916 | -10/Subcaves | Continued accompanying wandering Federalists (3) 916 | -10/Subcaves | Approached by a straggling Scientist 1091 | -10/Subcaves | Lost 4 allies 1979 | -10/Subcaves | Ambushed by Subdweller buried in earth 2058 | -10/Subcaves | Learned Materials terminal intel 2669 | -10/Subcaves | Discovered new exit (range 9) 2816 | -10/Subcaves | A Subdweller sparked back to life 2816 | -10/Subcaves | A Subdweller sparked back to life 2849 | -10/Subcaves | Found Prototype Protection 2862 | -10/Subcaves | Identified Gun Armor 2863 | -10/Subcaves | Attached Gun Armor, gained temporary slots: Weapon x2 3118 | -10/Subcaves | Learned location of 1 exit from Materials 3147 | -10/Subcaves | Core integrity fell below 50% 3194 | -10/Subcaves | Lost 3 parts (1n2w) 3263 | -10/Subcaves | Discovered new exit (range 10) 3266 | -10/Subcaves | Core integrity fell below 20% 3270 | -10/Subcaves | Destroyed by Autobeam Turret with Autobeam Last Messages --------------- 02899_ Acquired Sub. Monowheel. 03016_ Subatomizers dissect the Sub. Optics. 03023_ XJ-YWZ(R) destroyed. 03035_ Acquired 21 matter. 03104_ Y-45 Defender destroyed. 03107_ Acquired 60 matter. 03113_ Acquired derelict log, extracted data. Data stored: Storage entrances (x1). 03114_ Corrupted Beam Rifle self-destruct mechanism malfunctions. 03118_ Acquired derelict log, extracted data. Data stored: Materials exits (x1). 03127_ Sub. Power Source shoots sparks and powers down. 03149_ 5L-RSN(R) destroyed. 03158_ Grenade Launcher destroyed. 03161_ Imp. Treads destroyed. 03163_ Battle Rifle destroyed. 03194_ Broken Sub. Power Source destroyed. 03263_ EXIT=FOUND Map ----- +----------------------------------------------------+ | ## # =&[ ## ####?????????? | | ## ## ##### ### # #?????????? | | # ### ##??#####?## #?????????? | | # ## ##?#???#?## #?????????? | | # " ### ##??????# ##????????#? | | # " ##### ##?????# ##?????????? | | #### &! = #??## ### #???#?## #??????????? | | ???## ###??# #??##??????# #????#?????? | | ????# " ##??# ##?####????## ###??#??????? | | ????#### ""#### #### ##???## ###???#?????? | | ???????#" " ## ##### #???##?????# | | ???????##" "### ####???????# | | ????????#"" " ## ### ##????#?# | | ????###?#"" " #####?# ## #??????? | | ?#### ###" "##???#?# ### # ##?####?? | | ?# #####?## #### ### ##??# ### | | ?## #?# ### ### ##### # | | ?# # ## #### # ### ## | | ?# ## #??# ## #?# ## | | ### ## #??###### ## #?# | | # ### #???????### ####?# | | # #### #????###??###????## | | ## #??# ######<#####?###??# ## ## | | #" #???#####"""" """"### #### ## ## | | #???????#" " " "## ### ## | | #" ""##"#" #???????#" t@t "## ### | | "##"" #### ##??#????# ## #?# ## # | | #### ##?#" #???????# ## #?##### ## | | ???####?##" #????####" "# ##??#?###? | | ?????# ##" ####### ####s s#### ##????# # | | ?????## " "# ## &% #?#?##" | | ?????# " " ## %&%! #????# | | ?????# ## ##### & " #????## | | ?????#" ## # #???## ##% """ #?????## | | ?????#" ###### ### " #??????# | | ????#" ""[ #" ## #?????? | | ?#" """"# ### #????? | | ?#" ####### " # # #????? | | ?## ??????# """#####? "#????? | | ??# ???????## #??? """###????? | | ??# ????????#### "#??? #??????? | | ??#????????????## & #? ???????? | | ????????????????# #### ???????? | | ????????????????# #??? #??????? | | ????????????????## ????# ???????? | | ????????????????? ???? ?????????? | | ????????????????? # ??????????#??????? | | ?????????????????## ?????????????????? | | ??????????????????? #??????????????????? | | ??????????????????? ## ##??????????????????? | +----------------------------------------------------+ Best States ------------- Heat Dissipation 25 Energy Generation 15 Energy Capacity 200 Matter Stores 385 Matter Capacity 400 Sight Range 16 Terrain Scan Range 16 Terrain Scan Density 10 Armor Coverage 60 Evasion (%) 44 Recoil Reduction 2 Item Schematics ----------------- None Robot Schematics ------------------ None Fabricated ------------ Nothing Repaired ---------- Nothing Alien Tech Used ----------------- None Achievements -------------- None Challenges ------------ None Game ------ Seed EnergyMultinovaArchive Manual? 0 Play Time 00:18:36 Cumulative 235.6 hours Start 2025.05.25 @ 16:59:12 End 2025.05.25 @ 17:17:37 Sessions 1 Manual Loads 0 Difficulty Rogue Special Mode None Game No. 140 Rogue 140 Adventurer 0 Explorer 0 Win Type - Total 3 Types 1/0/1/1/0/0/0/0/0/0 Lore% 77 Gallery% 64 Achievement% 63 Wizard Run 0 Options --------- Layout 2 ASCII 0 Keyboard 1 Movement Vi Keybinds 0 Fullscreen 1 Font 16/SmallcapsGlow Map View 55x47 Zoom Use 0% Tactical HUD 1 Map Filters NONE Filters NONE Steam 0 RUN: d1cbcc39-c370-4a18-8d3b-d62f76d3055e